fUSD/lending_fUSD_20240428
["ID","MTS","AMOUNT","RATE_DAILY","PERIOD"]
[42535,1714331552099,-500.0,0.00014794,2]
[42537,1714331552117,-546.92,0.00014794,2]
[42539,1714331552135,-500.0,0.00014794,2]
[42541,1714331552153,-500.0,0.00014794,2]
[42543,1714331552172,-500.0,0.00014794,2]
[42545,1714331552190,-500.0,0.00014794,2]
[42547,1714331552208,-639.04363017,0.00014794,2]
[42549,1714331552227,-681.2,0.00014794,2]
[42551,1714331552246,-313.37403931,0.00014794,2]
[42553,1714331552265,-712.36,0.00014794,2]
[42555,1714331552283,-302.89634333,0.00014794,2]
[42557,1714331552301,-500.0,0.00014794,2]
[42558,1714331552311,-514.37,0.00014794,2]
[42559,1714331552319,-249.29535695,0.00014794,2]
[42561,1714331552338,-770.94,0.00014794,2]
[42562,1714331552347,-500.0,0.00014794,2]
[42563,1714331552357,-500.0,0.00014794,2]
[42564,1714331552367,-500.0,0.00014794,2]
[42565,1714331552379,-603.05344142,0.00014794,2]
[42566,1714331552389,-243.92029007,0.00014794,2]
[42567,1714331552399,-500.0,0.00014794,2]
[42569,1714331552418,-500.0,0.00014794,2]
[42571,1714331552437,-1224.58,0.00014794,2]
[42573,1714331552458,-1272.33,0.00014794,2]
[42575,1714331552478,-523.16,0.00014794,2]
[42577,1714331552497,-500.0,0.00014794,2]
[42579,1714331552516,-678.48,0.00014794,2]
[42581,1714331552536,-801.46,0.00014794,2]
[42583,1714331552555,-599.75123933,0.00014794,2]
[42585,1714331552574,-500.0,0.00014794,2]
[42587,1714331552593,-500.0,0.00014794,2]
[42589,1714331552612,-500.0,0.00014794,2]
[42591,1714331552631,-1142.31,0.00014794,2]
[42593,1714331552650,-606.2,0.00014794,2]
[42595,1714331552670,-618.36,0.00014794,2]
[42597,1714331552689,-629.85,0.00014794,2]
[42599,1714331552707,-816.26,0.00014794,2]
[42601,1714331552726,-891.97,0.00014794,2]
[42603,1714331552745,-527.72,0.00014794,2]
[42605,1714331552763,-788.51,0.00014794,2]
[42607,1714331552782,-711.18,0.00014794,2]
[42609,1714331552801,-565.5,0.00014794,2]
[42611,1714331552819,-1218.59,0.00014794,2]
[42613,1714331552839,-643.86,0.00014794,2]
[42615,1714331552858,-666.45,0.00014794,2]
[42617,1714331552877,-513.55,0.00014794,2]
[42619,1714331552896,-728.71,0.00014794,2]
[42621,1714331552915,-803.65,0.00014794,2]
[42623,1714331552934,-532.59196028,0.00014794,2]
[42625,1714331552953,-542.89,0.00014794,2]
[42627,1714331552971,-1308.96,0.00014794,2]
[42629,1714331552990,-815.56,0.00014794,2]
[42631,1714331553008,-920.36,0.00014794,2]
[42633,1714331553027,-500.0,0.00014794,2]
[42635,1714331553046,-500.0,0.00014794,2]
[42637,1714331553064,-765.46,0.00014794,2]
[42639,1714331553083,-652.17,0.00014794,2]
[42641,1714331553102,-585.78,0.00014794,2]
[42643,1714331553120,-535.83,0.00014794,2]
[42645,1714331553139,-500.0,0.00014794,2]
[42647,1714331553158,-500.0,0.00014794,2]
[42649,1714331553177,-640.22,0.00014794,2]
[42651,1714331553302,-710.87,0.00014794,2]
[42653,1714331553322,-500.0,0.00014794,2]
[42655,1714331553343,-725.07,0.00014794,2]
[42657,1714331553362,-544.86,0.00014794,2]
[42659,1714331553386,-500.0,0.00014794,2]
[42661,1714331553405,-704.75,0.00014794,2]
[42663,1714331553425,-540.78,0.00014794,2]
[42665,1714331553445,-223.94452631,0.00014794,2]
[42667,1714331553467,-698.54,0.00014794,2]
[42669,1714331553486,-775.6,0.00014794,2]
[42671,1714331553506,-890.23,0.00014794,2]
[42673,1714331553525,-500.0,0.00014794,2]
[42675,1714331553544,-628.44,0.00014794,2]
[42677,1714331553564,-807.65,0.00014794,2]
[42679,1714331553584,-721.68,0.00014794,2]
[42681,1714331553605,-500.0,0.00014794,2]
[42683,1714331553625,-500.0,0.00014794,2]
[42685,1714331553644,-607.06,0.00014794,2]
[42687,1714331553663,-500.0,0.00014794,2]
[42689,1714331553682,-646.9,0.00014794,2]
[42691,1714331553701,-500.0,0.00014794,2]
[42693,1714331553720,-998.15,0.00014794,2]
[42695,1714331553740,-556.97,0.00014794,2]
[42697,1714331553759,-888.38,0.00014794,2]
[42699,1714331553778,-500.0,0.00014794,2]
[42701,1714331553796,-596.12,0.00014794,2]
[42703,1714331553816,-614.15,0.00014794,2]
[42705,1714331553836,-500.0,0.00014794,2]
[42707,1714331553857,-150.0,0.00014794,2]
[42709,1714331553877,-500.0,0.00014794,2]
[42711,1714331553897,-500.0,0.00014794,2]
[42713,1714331553916,-500.0,0.00014794,2]
[42715,1714331553935,-500.0,0.00014794,2]
[42716,1714331553945,-500.0,0.00014794,2]
[42717,1714331553954,-520.06,0.00014794,2]
[42718,1714331553964,-765.39,0.00014794,2]
[42719,1714331553973,-510.54,0.00014794,2]
[42720,1714331553983,-979.76,0.00014794,2]
[42721,1714331553992,-801.75,0.00014794,2]
[42722,1714331554001,-662.94,0.00014794,2]
[42723,1714331554011,-906.44,0.00014794,2]
[42724,1714331554020,-500.0,0.00014794,2]
[42725,1714331554029,-251.74342695,0.00014794,2]
[42726,1714331554039,-551.42,0.00014794,2]
[42727,1714331554050,-837.85,0.00014794,2]
[42729,1714331554069,-500.0,0.00014794,2]
[42731,1714331554091,-536.2,0.00014794,2]
[42733,1714331554109,-540.89,0.00014794,2]
[42735,1714331554128,-577.63,0.00014794,2]
[42737,1714331554148,-500.0,0.00014794,2]
[42739,1714331554167,-500.0,0.00014794,2]
[42741,1714331554186,-500.0,0.00014794,2]
[42743,1714331554206,-500.0,0.00014794,2]
[42745,1714331554225,-595.66,0.00014794,2]
[42747,1714331554246,-538.0,0.00014794,2]
[42749,1714331554265,-551.04,0.00014794,2]
[42751,1714331554285,-500.0,0.00014794,2]
[42753,1714331554305,-768.34,0.00014794,2]
[42755,1714331554325,-531.88,0.00014794,2]
[42757,1714331554345,-1772.83,0.00014794,2]
[42759,1714331554364,-2921.48,0.00014794,2]
[42761,1714331554387,-598.01,0.00014794,2]
[42763,1714331554407,-805.9,0.00014794,2]
[42765,1714331554428,-500.0,0.00014794,2]
[42767,1714331554449,-772.53,0.00014794,2]
[42769,1714331554471,-622.52,0.00014794,2]
[42771,1714331554491,-1102.77,0.00014794,2]
[42773,1714331554511,-2683.52,0.00014794,2]
[42775,1714331554530,-757.63,0.00014794,2]
[42777,1714331554549,-1071.68,0.00014794,2]
[42779,1714331554569,-1126.91,0.00014794,2]
[42781,1714331554596,-768.45,0.00014794,2]
[42783,1714331554615,-500.0,0.00014794,2]
[42785,1714331554634,-1727.07,0.00014794,2]
[42787,1714331554653,-560.22,0.00014794,2]
[42789,1714331554672,-2375.71,0.00014794,2]
[42791,1714331554691,-3328.96,0.00014794,2]
[42792,1714331554700,-726.91,0.00014794,2]
[42793,1714331554710,-1119.03,0.00014794,2]
[42794,1714331554719,-555.89,0.00014794,2]
[42795,1714331554728,-1829.87,0.00014794,2]
[42796,1714331554738,-502.88,0.00014794,2]
[42797,1714331554747,-555.53,0.00014794,2]
[42798,1714331554757,-1369.84,0.00014794,2]
[42799,1714331554767,-1950.72,0.00014794,2]
[42800,1714331554776,-2951.91,0.00014794,2]
[42801,1714331554786,-502.86,0.00014794,2]
[42802,1714331554795,-1806.02,0.00014794,2]
[42803,1714331554804,-1573.76,0.00014794,2]
[42805,1714331554823,-16629.27,0.00014794,2]
[42807,1714331554841,-500.0,0.00014794,2]
[42809,1714331554860,-850.01,0.00014794,2]
[42811,1714331554880,-2107.3,0.00014794,2]
[42813,1714331554899,-1434.31,0.00014794,2]
[42815,1714331554919,-1145.96,0.00014794,2]
[42817,1714331554938,-823.49,0.00014794,2]
[42819,1714331554957,-2859.93,0.00014794,2]
[42821,1714331554977,-500.0,0.00014794,2]
[42823,1714331554997,-1251.88,0.00014794,2]
[42825,1714331555016,-1301.64,0.00014794,2]
[42827,1714331555035,-559.47,0.00014794,2]
[42829,1714331555054,-558.43,0.00014794,2]
[42831,1714331555074,-3164.21,0.00014794,2]
[42833,1714331555093,-760.17,0.00014794,2]
[42835,1714331555113,-2951.22,0.00014794,2]
[42837,1714331555132,-856.74,0.00014794,2]
[42839,1714331555151,-586.66,0.00014794,2]
[42841,1714331555170,-506.42,0.00014794,2]
[42843,1714331555190,-1754.95,0.00014794,2]
[42845,1714331555209,-173.29446805,0.00014794,2]
[42847,1714331555228,-11529.36,0.00014794,2]
[42849,1714331555247,-534.65,0.00014794,2]
[42851,1714331555266,-813.94,0.00014794,2]
[42853,1714331555285,-903.91,0.00014794,2]
[42855,1714331555303,-1550.17,0.00014794,2]
[42857,1714331555322,-613.08,0.00014794,2]
[42859,1714331555341,-500.0,0.00014794,2]
[42861,1714331555361,-1711.83,0.00014794,2]
[42862,1714331555372,-747.92,0.00014794,2]
[42863,1714331555384,-1211.25,0.00014794,2]
[42865,1714331555404,-1062.05,0.00014794,2]
[42867,1714331555425,-500.0,0.00014794,2]
[42869,1714331555690,-829.71,0.00014794,2]
[42871,1714331555751,-579.0,0.00014794,2]
[42873,1714331555771,-500.0,0.00014794,2]
[42875,1714331555791,-3800.95,0.00014794,2]
[42877,1714331555810,-1489.82,0.00014794,2]
[42879,1714331555829,-500.0,0.00014794,2]
[42880,1714331555839,-2292.13,0.00014794,2]
[42881,1714331555849,-894.45,0.00014794,2]
[42883,1714331555870,-706.5,0.00014794,2]
[42885,1714331555889,-4212.02,0.00014794,2]
[42887,1714331555908,-1126.83,0.00014794,2]
[42889,1714331555927,-672.42,0.00014794,2]
[42891,1714331555946,-1242.59,0.00014794,2]
[42893,1714331555965,-500.0,0.00014794,2]
[42894,1714331555975,-1401.31,0.00014794,2]
[42895,1714331555984,-394.09232759,0.00014794,2]
[42896,1714331555994,-860.55,0.00014794,2]
[42897,1714331556004,-977.7,0.00014794,2]
[42898,1714331556014,-1049.2,0.00014794,2]
[42899,1714331556024,-6674.97,0.00014794,2]
[42900,1714331556034,-524.08,0.00014794,2]
[42901,1714331556043,-16083.09,0.00014794,2]
[42902,1714331556053,-723.16,0.00014794,2]
[42903,1714331556064,-1549.43,0.00014794,2]
[42904,1714331556073,-761.59,0.00014794,2]
[42905,1714331556083,-539.58391871,0.00014794,2]
[42907,1714331556103,-951.73,0.00014794,2]
[42909,1714331556122,-8626.56,0.00014794,2]
[42911,1714331556141,-619.85,0.00014794,2]
[42913,1714331556160,-766.16,0.00014794,2]
[42915,1714331556180,-500.0,0.00014794,2]
[42917,1714331556199,-526.35,0.00014794,2]
[42918,1714331556209,-3105.73,0.00014794,2]
[42919,1714331556218,-1174.3,0.00014794,2]
[42920,1714331556228,-3774.23,0.00014794,2]
[42921,1714331556237,-1939.82,0.00014794,2]
[42922,1714331556246,-897.97,0.00014794,2]
[42923,1714331556255,-1975.3,0.00014794,2]
[42925,1714331556275,-2494.32,0.00014794,2]
[42927,1714331556294,-736.62,0.00014794,2]
[42929,1714331556313,-2923.81,0.00014794,2]
[42931,1714331556332,-1242.16,0.00014794,2]
[42933,1714331556351,-269.3472911,0.00014794,2]
[42935,1714331556372,-1370.1,0.00014794,2]
[42937,1714331556394,-1204.37,0.00014794,2]
[42939,1714331556414,-500.0,0.00014794,2]
[42941,1714331556434,-1538.14,0.00014794,2]
[42943,1714331556454,-8592.95,0.00014794,2]
[42945,1714331556473,-529.13,0.00014794,2]
[42947,1714331556492,-500.0,0.00014794,2]
[42949,1714331556512,-808.74,0.00014794,2]
[42951,1714331556533,-158.451737,0.00014795,2]
[42953,1714331556553,-31044.25,0.00014823,6]
[42954,1714331556564,-801.51,0.00014847,2]
[42955,1714331556574,-328.71506121,0.00014848,2]
[42956,1714331556583,-201.0,0.0001485,2]
[42957,1714331556595,-260.0,0.0001485,2]
[42958,1714331556605,-150.0,0.00014909,2]
[42959,1714331556615,-328.71506121,0.0001494,2]
[42961,1714331556634,-2348.0,0.00014946,2]
[42963,1714331556655,-28761.59813632,0.00014968,2]
[42965,1714331556674,-300.0,0.00014999,2]
[42967,1714331556694,-300.0,0.00014999,2]
[42969,1714331556714,-300.0,0.00014999,2]
[42971,1714331556733,-300.0,0.00014999,2]
[42973,1714331556752,-657851.0,0.00015,2]
[42975,1714331556771,-939.0,0.00015,2]
[42977,1714331556791,-274.70024006,0.00015,14]
[42979,1714331556810,-150.0,0.00015048,2]
[42981,1714331556830,-150.0,0.00015066,2]
[42983,1714331556850,-625.22,0.00015068,2]
[42985,1714331556869,-500.0,0.00015068,2]
[42986,1714331556879,-500.0,0.00015068,2]
[42987,1714331556889,-607.32,0.00015068,2]
[42989,1714331556907,-500.0,0.00015068,2]
[42990,1714331556917,-597.62,0.00015068,2]
[42991,1714331556926,-744.02,0.00015068,2]
[42993,1714331556945,-556.86,0.00015068,2]
[42995,1714331556964,-634.38,0.00015068,2]
[42996,1714331556974,-503.88,0.00015068,2]
[42997,1714331556983,-610.03,0.00015068,2]
[42999,1714331557002,-504.25197374,0.00015068,2]
[43001,1714331557021,-500.0,0.00015068,2]
[43003,1714331557039,-500.0,0.00015068,2]
[43005,1714331557058,-546.92,0.00015068,2]
[43007,1714331557077,-500.0,0.00015068,2]
[43008,1714331557087,-638.09,0.00015068,2]
[43009,1714331557096,-500.0,0.00015068,2]
[43010,1714331557106,-500.0,0.00015068,2]
[43011,1714331557115,-500.0,0.00015068,2]
[43013,1714331557135,-500.0,0.00015068,2]
[43015,1714331557153,-500.0,0.00015068,2]
[43017,1714331557172,-652.17,0.00015068,2]
[43019,1714331557190,-712.36,0.00015068,2]
[43021,1714331557209,-566.45,0.00015068,2]
[43023,1714331557228,-514.37,0.00015068,2]
[43025,1714331557246,-770.94,0.00015068,2]
[43027,1714331557276,-153.60888539,0.00015068,2]
[43029,1714331557296,-500.0,0.00015068,2]
[43031,1714331557315,-500.0,0.00015068,2]
[43032,1714331557325,-500.0,0.00015068,2]
[43033,1714331557335,-1224.58,0.00015068,2]
[43034,1714331557350,-574.66,0.00015068,2]
[43035,1714331557360,-1272.33,0.00015068,2]
[43037,1714331557384,-523.16,0.00015068,2]
[43039,1714331557404,-500.0,0.00015068,2]
[43041,1714331557425,-678.48,0.00015068,2]
[43043,1714331557444,-801.46,0.00015068,2]
[43045,1714331557465,-649.51,0.00015068,2]
[43047,1714331557488,-899.28,0.00015068,2]
[43049,1714331557508,-500.0,0.00015068,2]
[43051,1714331557530,-500.0,0.00015068,2]
[43053,1714331557551,-500.0,0.00015068,2]
[43054,1714331557560,-606.2,0.00015068,2]
[43055,1714331557570,-581.74,0.00015068,2]
[43057,1714331557590,-783.25,0.00015068,2]
[43058,1714331557600,-629.85,0.00015068,2]
[43059,1714331557610,-241.34531148,0.00015068,2]
[43060,1714331557620,-816.26,0.00015068,2]
[43061,1714331557630,-507.09,0.00015068,2]
[43062,1714331557641,-891.97,0.00015068,2]
[43063,1714331557652,-1106.8,0.00015068,2]
[43064,1714331557661,-527.72,0.00015068,2]
[43065,1714331557672,-668.56,0.00015068,2]
[43066,1714331557683,-788.51,0.00015068,2]
[43067,1714331557692,-440.76885559,0.00015068,2]
[43068,1714331557703,-711.18,0.00015068,2]
[43069,1714331557713,-513.17,0.00015068,2]
[43070,1714331557726,-565.5,0.00015068,2]
[43071,1714331557737,-1610.42,0.00015068,2]
[43072,1714331557747,-1218.59,0.00015068,2]
[43073,1714331557757,-643.86,0.00015068,2]
[43074,1714331557769,-500.0,0.00015068,2]
[43075,1714331557781,-666.45,0.00015068,2]
[43076,1714331557792,-513.55,0.00015068,2]
[43077,1714331557802,-1577.52,0.00015068,2]
[43079,1714331557820,-502.40741793,0.00015068,2]
[43081,1714331557840,-615.66,0.00015068,2]
[43083,1714331557861,-542.89,0.00015068,2]
[43085,1714331557881,-1308.96,0.00015068,2]
[43087,1714331557899,-815.56,0.00015068,2]
[43089,1714331557918,-920.36,0.00015068,2]
[43091,1714331557939,-243.28038845,0.00015068,2]
[43092,1714331557948,-500.0,0.00015068,2]
[43093,1714331557958,-500.0,0.00015068,2]
[43094,1714331557968,-592.76,0.00015068,2]
[43095,1714331557977,-765.46,0.00015068,2]
[43096,1714331557986,-623.57,0.00015068,2]
[43097,1714331557996,-652.17,0.00015068,2]
[43098,1714331558005,-500.0,0.00015068,2]
[43099,1714331558015,-585.78,0.00015068,2]
[43100,1714331558025,-519.38,0.00015068,2]
[43101,1714331558036,-535.83,0.00015068,2]
[43102,1714331558045,-1176.19,0.00015068,2]
[43103,1714331558055,-500.0,0.00015068,2]
[43104,1714331558065,-581.86,0.00015068,2]
[43105,1714331558074,-500.0,0.00015068,2]
[43106,1714331558086,-608.78,0.00015068,2]
[43107,1714331558095,-640.22,0.00015068,2]
[43108,1714331558105,-449.30750242,0.00015068,2]
[43109,1714331558115,-710.87,0.00015068,2]
[43110,1714331558253,-500.0,0.00015068,2]
[43111,1714331558263,-500.0,0.00015068,2]
[43112,1714331558273,-810.35,0.00015068,2]
[43113,1714331558282,-725.07,0.00015068,2]
[43115,1714331558300,-544.86,0.00015068,2]
[43117,1714331558319,-500.0,0.00015068,2]
[43119,1714331558338,-704.75,0.00015068,2]
[43121,1714331558356,-500.0,0.00015068,2]
[43123,1714331558378,-534.78,0.00015068,2]
[43125,1714331558396,-500.0,0.00015068,2]
[43127,1714331558415,-682.92,0.00015068,2]
[43129,1714331558434,-1031.24,0.00015068,2]
[43130,1714331558443,-297.45464426,0.00015068,2]
[43131,1714331558454,-512.99,0.00015068,2]
[43132,1714331558463,-628.44,0.00015068,2]
[43133,1714331558473,-500.0,0.00015068,2]
[43134,1714331558482,-807.65,0.00015068,2]
[43135,1714331558491,-561.86,0.00015068,2]
[43136,1714331558500,-721.68,0.00015068,2]
[43137,1714331558509,-500.0,0.00015068,2]
[43138,1714331558519,-500.0,0.00015068,2]
[43139,1714331558527,-500.0,0.00015068,2]
[43140,1714331558536,-442.47766664,0.00015068,2]
[43141,1714331558545,-500.0,0.00015068,2]
[43143,1714331558564,-500.0,0.00015068,2]
[43145,1714331558582,-646.9,0.00015068,2]
[43147,1714331558602,-500.0,0.00015068,2]
[43148,1714331558611,-588.44,0.00015068,2]
[43149,1714331558620,-998.15,0.00015068,2]
[43151,1714331558639,-556.97,0.00015068,2]
[43152,1714331558648,-627.25,0.00015068,2]
[43153,1714331558658,-888.38,0.00015068,2]
[43154,1714331558667,-573.36,0.00015068,2]
[43155,1714331558676,-500.0,0.00015068,2]
[43156,1714331558685,-565.43,0.00015068,2]
[43157,1714331558695,-596.12,0.00015068,2]
[43158,1714331558704,-700.29,0.00015068,2]
[43159,1714331558713,-614.15,0.00015068,2]
[43161,1714331558731,-500.0,0.00015068,2]
[43163,1714331558750,-150.0,0.00015068,2]
[43165,1714331558769,-500.0,0.00015068,2]
[43167,1714331558787,-500.0,0.00015068,2]
[43169,1714331558806,-500.0,0.00015068,2]
[43171,1714331558824,-500.0,0.00015068,2]
[43172,1714331558834,-500.0,0.00015068,2]
[43173,1714331558843,-520.06,0.00015068,2]
[43174,1714331558854,-765.39,0.00015068,2]
[43175,1714331558863,-510.54,0.00015068,2]
[43177,1714331558882,-801.75,0.00015068,2]
[43179,1714331558901,-906.44,0.00015068,2]
[43181,1714331558920,-551.42,0.00015068,2]
[43183,1714331558938,-511.71,0.00015068,2]
[43185,1714331558957,-913.43,0.00015068,2]
[43187,1714331558975,-500.0,0.00015068,2]
[43189,1714331558993,-500.0,0.00015068,2]
[43191,1714331559011,-717.54,0.00015068,2]
[43193,1714331559029,-500.0,0.00015068,2]
[43195,1714331559047,-500.0,0.00015068,2]
[43197,1714331559066,-996.75,0.00015068,2]
[43199,1714331559085,-595.66,0.00015068,2]
[43201,1714331559103,-781.66,0.00015068,2]
[43203,1714331559121,-604.53,0.00015068,2]
[43205,1714331559139,-383.63,0.00015068,2]
[43206,1714331559148,-768.34,0.00015068,2]
[43207,1714331559158,-531.88,0.00015068,2]
[43208,1714331559167,-1007.48,0.00015068,2]
[43209,1714331559176,-1772.83,0.00015068,2]
[43211,1714331559195,-2921.48,0.00015068,2]
[43212,1714331559204,-986.84,0.00015068,2]
[43213,1714331559213,-598.01,0.00015068,2]
[43215,1714331559231,-805.9,0.00015068,2]
[43217,1714331559250,-500.0,0.00015068,2]
[43219,1714331559269,-772.53,0.00015068,2]
[43221,1714331559287,-622.52,0.00015068,2]
[43223,1714331559305,-1102.77,0.00015068,2]
[43224,1714331559315,-979.15,0.00015068,2]
[43225,1714331559324,-2683.52,0.00015068,2]
[43226,1714331559333,-513.23,0.00015068,2]
[43227,1714331559343,-757.63,0.00015068,2]
[43229,1714331559362,-1071.68,0.00015068,2]
[43231,1714331559384,-1126.91,0.00015068,2]
[43232,1714331559393,-753.04,0.00015068,2]
[43233,1714331559403,-768.45,0.00015068,2]
[43234,1714331559411,-500.0,0.00015068,2]
[43235,1714331559422,-500.0,0.00015068,2]
[43236,1714331559431,-729.6,0.00015068,2]
[43237,1714331559441,-1727.07,0.00015068,2]
[43238,1714331559450,-500.0,0.00015068,2]
[43239,1714331559459,-560.22,0.00015068,2]
[43240,1714331559470,-1439.12,0.00015068,2]
[43241,1714331559479,-2375.71,0.00015068,2]
[43242,1714331559489,-768.05,0.00015068,2]
[43243,1714331559498,-3328.96,0.00015068,2]
[43244,1714331559507,-726.91,0.00015068,2]
[43245,1714331559517,-1119.03,0.00015068,2]
[43247,1714331559535,-1829.87,0.00015068,2]
[43249,1714331559554,-555.53,0.00015068,2]
[43251,1714331559572,-1950.72,0.00015068,2]
[43253,1714331559591,-502.86,0.00015068,2]
[43255,1714331559609,-1573.76,0.00015068,2]
[43257,1714331559627,-16629.27,0.00015068,2]
[43259,1714331559646,-500.0,0.00015068,2]
[43261,1714331559665,-850.01,0.00015068,2]
[43263,1714331559684,-2107.3,0.00015068,2]
[43265,1714331559703,-1434.31,0.00015068,2]
[43267,1714331559721,-1145.96,0.00015068,2]
[43269,1714331559740,-823.49,0.00015068,2]
[43271,1714331559759,-2859.93,0.00015068,2]
[43273,1714331559777,-500.0,0.00015068,2]
[43275,1714331559796,-1251.88,0.00015068,2]
[43277,1714331559815,-1301.64,0.00015068,2]
[43279,1714331559834,-559.47,0.00015068,2]
[43281,1714331559854,-558.43,0.00015068,2]
[43283,1714331559874,-3164.21,0.00015068,2]
[43285,1714331559892,-760.17,0.00015068,2]
[43287,1714331559911,-2951.22,0.00015068,2]
[43289,1714331559930,-856.74,0.00015068,2]
[43291,1714331559949,-586.66,0.00015068,2]
[43293,1714331559968,-506.42,0.00015068,2]
[43295,1714331559986,-1754.95,0.00015068,2]
[43297,1714331560006,-774.93,0.00015068,2]
[43299,1714331560025,-2615.87,0.00015068,2]
[43301,1714331560043,-956.53,0.00015068,2]
[43303,1714331560062,-1308.4,0.00015068,2]
[43305,1714331560082,-694.2,0.00015068,2]
[43307,1714331560102,-1112.97,0.00015068,2]
[43308,1714331560111,-613.08,0.00015068,2]
[43309,1714331560120,-565.24,0.00015068,2]
[43310,1714331560167,-500.0,0.00015068,2]
[43311,1714331560177,-1316.95,0.00015068,2]
[43313,1714331560196,-747.92,0.00015068,2]
[43314,1714331560205,-1211.25,0.00015068,2]
[43315,1714331560215,-600.34,0.00015068,2]
[43317,1714331560234,-995.48,0.00015068,2]
[43319,1714331560253,-500.0,0.00015068,2]
[43321,1714331560272,-938.89,0.00015068,2]
[43323,1714331560290,-500.0,0.00015068,2]
[43325,1714331560308,-531.05,0.00015068,2]
[43327,1714331560330,-509.12,0.00015068,2]
[43329,1714331560350,-500.0,0.00015068,2]
[43331,1714331560371,-894.45,0.00015068,2]
[43333,1714331560393,-706.5,0.00015068,2]
[43334,1714331560403,-774.47,0.00015068,2]
[43335,1714331560413,-1489.82,0.00015068,2]
[43336,1714331560424,-4212.02,0.00015068,2]
[43337,1714331560434,-973.0,0.00015068,2]
[43339,1714331560454,-672.42,0.00015068,2]
[43340,1714331560464,-5235.42,0.00015068,2]
[43341,1714331560474,-1242.59,0.00015068,2]
[43342,1714331560485,-1138.49,0.00015068,2]
[43343,1714331560494,-500.0,0.00015068,2]
[43344,1714331560504,-1401.31,0.00015068,2]
[43345,1714331560514,-917.33,0.00015068,2]
[43346,1714331560526,-860.55,0.00015068,2]
[43347,1714331560537,-977.7,0.00015068,2]